[Event "Late-Titled-Tuesday-Blitz-March-19-2024"]
[Site "Chess.com"]
[Date "2024.03.19"]
[Round "8"]
[White "Marcan2b"]
[Black "JoakimVonAnd"]
[Result "1-0"]
[WhiteElo "2929"]
[BlackElo "2714"]
[TimeControl "180+1"]
[EndTime "15:25:24 PDT"]
[Termination "Marcan2b won by resignation"]

1. e4 {[%clk 0:03:00.9]} 1... c6 {[%clk 0:02:59.3]} 2. d4 {[%clk 0:02:59.7]}
2... d5 {[%clk 0:03:00.2]} 3. Nc3 {[%clk 0:02:59.8]} 3... dxe4 {[%clk 0:03:00]}
4. Nxe4 {[%clk 0:03:00.7]} 4... Bf5 {[%clk 0:03:00.4]} 5. Ng3 {[%clk 0:03:00.9]}
5... Bg6 {[%clk 0:03:00.8]} 6. h4 {[%clk 0:03:01.6]} 6... h6 {[%clk 0:03:01.3]}
7. Bd3 {[%clk 0:03:02]} 7... Bxd3 {[%clk 0:03:00.6]} 8. Qxd3 {[%clk 0:03:02.9]}
8... e6 {[%clk 0:03:00.6]} 9. N1e2 {[%clk 0:03:03.5]} 9... Nf6 {[%clk
0:03:00.8]} 10. Bd2 {[%clk 0:03:04.1]} 10... c5 {[%clk 0:02:51.2]} 11. O-O-O
{[%clk 0:03:02]} 11... Nc6 {[%clk 0:02:51.1]} 12. Qb5 {[%clk 0:02:34.7]} 12...
Qb6 {[%clk 0:02:50.6]} 13. Qa4 {[%clk 0:02:01.2]} 13... cxd4 {[%clk 0:02:43.6]}
14. Kb1 {[%clk 0:02:01.9]} 14... O-O-O {[%clk 0:02:43.5]} 15. Nf4 {[%clk
0:01:59]} 15... e5 {[%clk 0:02:39.4]} 16. Nfe2 {[%clk 0:01:59.2]} 16... Bb4
{[%clk 0:02:33.8]} 17. Bc1 {[%clk 0:01:58.1]} 17... Rhe8 {[%clk 0:02:32.3]} 18.
h5 {[%clk 0:01:57.5]} 18... Nd5 {[%clk 0:02:27]} 19. Nf5 {[%clk 0:01:55.8]}
19... Bf8 {[%clk 0:02:15.3]} 20. Rh3 {[%clk 0:01:56]} 20... Qb4 {[%clk 0:02:10]}
21. Qxb4 {[%clk 0:01:55.4]} 21... Ndxb4 {[%clk 0:02:08.4]} 22. Rg3 {[%clk
0:01:56.3]} 22... g6 {[%clk 0:01:48.3]} 23. hxg6 {[%clk 0:01:56]} 23... fxg6
{[%clk 0:01:49.2]} 24. Rxg6 {[%clk 0:01:56.3]} 24... h5 {[%clk 0:01:49.9]} 25.
c3 {[%clk 0:01:51.3]} 25... d3 {[%clk 0:01:38]} 26. Neg3 {[%clk 0:01:49.3]}
26... Na6 {[%clk 0:01:36.3]} 27. Nxh5 {[%clk 0:01:47.3]} 27... e4 {[%clk
0:01:32.1]} 28. Be3 {[%clk 0:01:38.8]} 28... Bc5 {[%clk 0:01:30.4]} 29. Bxc5
{[%clk 0:01:38.1]} 29... Nxc5 {[%clk 0:01:31.3]} 30. Nd6+ {[%clk 0:01:38.1]}
30... Kb8 {[%clk 0:01:24.6]} 31. Nxe8 {[%clk 0:01:37.9]} 31... Rxe8 {[%clk
0:01:25.5]} 32. Nf6 {[%clk 0:01:37.4]} 32... Rf8 {[%clk 0:01:18.9]} 33. b4
{[%clk 0:01:23.5]} 33... Ne5 {[%clk 0:01:19]} 34. bxc5 {[%clk 0:01:22.7]} 34...
Nxg6 {[%clk 0:01:16.4]} 35. Nd7+ {[%clk 0:01:22.9]} 35... Kc7 {[%clk 0:01:16.4]}
36. Nxf8 {[%clk 0:01:23.8]} 36... Nxf8 {[%clk 0:01:17.3]} 37. f3 {[%clk
0:01:24.4]} 37... Ne6 {[%clk 0:01:15.7]} 38. fxe4 {[%clk 0:01:23.5]} 38... Nxc5
{[%clk 0:01:16.6]} 39. Kc1 {[%clk 0:01:22.6]} 39... Kd6 {[%clk 0:01:17]} 40. Kd2
{[%clk 0:01:18.4]} 40... Ke5 {[%clk 0:01:17.9]} 41. Ke3 {[%clk 0:01:18.3]} 41...
b5 {[%clk 0:01:18.2]} 42. Rxd3 {[%clk 0:01:18]} 42... Nxd3 {[%clk 0:01:18]} 43.
Kxd3 {[%clk 0:01:18.8]} 43... a5 {[%clk 0:01:18.9]} 44. Ke3 {[%clk 0:01:18.8]}
44... b4 {[%clk 0:01:19]} 45. cxb4 {[%clk 0:01:18.9]} 45... axb4 {[%clk
0:01:19.9]} 46. Kd3 {[%clk 0:01:19.1]} 1-0

[Event "Late-Titled-Tuesday-Blitz-March-19-2024"]
[Site "Chess.com"]
[Date "2024.03.19"]
[Round "8"]
[White "kleber2007"]
[Black "ZachHKL"]
[Result "0-1"]
[WhiteElo "2474"]
[BlackElo "2237"]
[TimeControl "180+1"]
[EndTime "15:25:31 PDT"]
[Termination "ZachHKL won by resignation"]

1. d4 {[%clk 0:03:00.9]} 1... d5 {[%clk 0:02:55.7]} 2. c4 {[%clk 0:03:00.3]}
2... c6 {[%clk 0:02:55.8]} 3. cxd5 {[%clk 0:03:00.1]} 3... cxd5 {[%clk 0:02:54]}
4. Bf4 {[%clk 0:03:00.6]} 4... Nf6 {[%clk 0:02:53.8]} 5. Nc3 {[%clk 0:03:00.2]}
5... Nc6 {[%clk 0:02:51.7]} 6. e3 {[%clk 0:03:00.3]} 6... a6 {[%clk 0:02:52]} 7.
Be2 {[%clk 0:02:59.5]} 7... Bf5 {[%clk 0:02:48.8]} 8. Nf3 {[%clk 0:02:59.1]}
8... e6 {[%clk 0:02:46.9]} 9. Qb3 {[%clk 0:02:59]} 9... Na5 {[%clk 0:02:40.6]}
10. Qa4+ {[%clk 0:02:58.5]} 10... Nc6 {[%clk 0:02:37.3]} 11. Ne5 {[%clk
0:02:56.2]} 11... Ng8 {[%clk 0:02:33.4]} 12. Nxc6 {[%clk 0:02:46.8]} 12... bxc6
{[%clk 0:02:30.6]} 13. Qxc6+ {[%clk 0:02:47.2]} 13... Ke7 {[%clk 0:02:30.7]} 14.
O-O {[%clk 0:02:09.1]} 14... h6 {[%clk 0:02:26.4]} 15. Rac1 {[%clk 0:02:04.1]}
15... g5 {[%clk 0:02:19.5]} 16. Qb7+ {[%clk 0:01:59]} 16... Ke8 {[%clk
0:02:16.9]} 17. Be5 {[%clk 0:01:53.7]} 17... f6 {[%clk 0:02:13.1]} 18. Bc7
{[%clk 0:01:52.9]} 18... Qc8 {[%clk 0:02:11.8]} 19. Qc6+ {[%clk 0:01:52.1]}
19... Kf7 {[%clk 0:02:10.6]} 20. e4 {[%clk 0:01:49.2]} 20... Ne7 {[%clk
0:01:59.8]} 21. Bh5+ {[%clk 0:01:36.2]} 21... Kg7 {[%clk 0:01:57.5]} 22. Qb6
{[%clk 0:01:27.8]} 22... dxe4 {[%clk 0:01:54.9]} 23. Rfe1 {[%clk 0:01:27.5]}
23... Qd7 {[%clk 0:01:49.6]} 24. Nxe4 {[%clk 0:01:23.1]} 24... Nd5 {[%clk
0:01:44.4]} 25. Qa5 {[%clk 0:01:14.9]} 25... Bb4 {[%clk 0:01:42.2]} 26. Nxf6
{[%clk 0:01:08.9]} 26... Kxf6 {[%clk 0:01:28.1]} 27. Be5+ {[%clk 0:01:05.1]}
27... Ke7 {[%clk 0:01:27.5]} 28. Rc7 {[%clk 0:00:58.1]} 28... Bxa5 {[%clk
0:01:24.4]} 29. Rxd7+ {[%clk 0:00:57.9]} 29... Kxd7 {[%clk 0:01:25.3]} 30. Rd1
{[%clk 0:00:56.5]} 30... Rhc8 {[%clk 0:01:22.4]} 31. Bf3 {[%clk 0:00:55]} 31...
g4 {[%clk 0:01:19.2]} 32. Be2 {[%clk 0:00:54.1]} 32... Rc2 {[%clk 0:01:18.4]}
33. Bf1 {[%clk 0:00:53.8]} 33... Rac8 {[%clk 0:01:17.3]} 34. a3 {[%clk
0:00:51.2]} 34... Rc1 {[%clk 0:01:17.1]} 0-1

[Event "Late-Titled-Tuesday-Blitz-March-19-2024"]
[Site "Chess.com"]
[Date "2024.03.19"]
[Round "8"]
[White "Tugrik1969"]
[Black "jaramsdal"]
[Result "1-0"]
[WhiteElo "2395"]
[BlackElo "2278"]
[TimeControl "180+1"]
[EndTime "15:25:31 PDT"]
[Termination "Tugrik1969 won by resignation"]

1. d4 {[%clk 0:03:00.9]} 1... d5 {[%clk 0:02:55]} 2. c4 {[%clk 0:03:01]} 2... c6
{[%clk 0:02:55]} 3. Nf3 {[%clk 0:03:01.5]} 3... Nf6 {[%clk 0:02:54.6]} 4. Nc3
{[%clk 0:03:02]} 4... e6 {[%clk 0:02:53.4]} 5. g3 {[%clk 0:03:02.2]} 5... dxc4
{[%clk 0:02:48]} 6. Bg2 {[%clk 0:03:02]} 6... b5 {[%clk 0:02:48.2]} 7. Ne5
{[%clk 0:03:02]} 7... Nd5 {[%clk 0:02:20.5]} 8. O-O {[%clk 0:03:01.6]} 8... Bd6
{[%clk 0:02:16.9]} 9. Ne4 {[%clk 0:02:52.1]} 9... Bxe5 {[%clk 0:02:15.5]} 10.
dxe5 {[%clk 0:02:51.5]} 10... O-O {[%clk 0:02:15.6]} 11. b3 {[%clk 0:02:47]}
11... c3 {[%clk 0:01:58.8]} 12. Qc2 {[%clk 0:02:20.8]} 12... Na6 {[%clk
0:01:39.5]} 13. Nxc3 {[%clk 0:02:15.7]} 13... Nab4 {[%clk 0:01:39.1]} 14. Qd2
{[%clk 0:02:08.3]} 14... Qc7 {[%clk 0:01:32.4]} 15. Bb2 {[%clk 0:01:58.8]} 15...
Nxc3 {[%clk 0:01:12.9]} 16. Qxc3 {[%clk 0:01:42.7]} 16... Nd5 {[%clk 0:01:12.8]}
17. Qc5 {[%clk 0:01:40.7]} 17... Qb6 {[%clk 0:01:05]} 18. Rac1 {[%clk
0:01:37.4]} 18... Qxc5 {[%clk 0:00:57.8]} 19. Rxc5 {[%clk 0:01:38.3]} 19... Bb7
{[%clk 0:00:58.3]} 20. Bxd5 {[%clk 0:01:19.1]} 20... exd5 {[%clk 0:00:57.8]} 21.
Bd4 {[%clk 0:01:18.1]} 21... Rfe8 {[%clk 0:00:51.6]} 22. f4 {[%clk 0:01:18.1]}
22... g6 {[%clk 0:00:49]} 23. g4 {[%clk 0:01:17.2]} 23... Bc8 {[%clk 0:00:43.5]}
24. f5 {[%clk 0:01:16.9]} 24... gxf5 {[%clk 0:00:43.3]} 25. gxf5 {[%clk
0:01:17.8]} 25... Bxf5 {[%clk 0:00:43.6]} 26. Rxf5 {[%clk 0:01:17]} 1-0

[Event "Late-Titled-Tuesday-Blitz-March-19-2024"]
[Site "Chess.com"]
[Date "2024.03.19"]
[Round "8"]
[White "CheckThis4"]
[Black "Alex_Sahakyan2006"]
[Result "1-0"]
[WhiteElo "2689"]
[BlackElo "2807"]
[TimeControl "180+1"]
[EndTime "15:25:37 PDT"]
[Termination "CheckThis4 won by resignation"]

1. e4 {[%clk 0:03:00.9]} 1... c6 {[%clk 0:02:55.7]} 2. d4 {[%clk 0:02:59.6]}
2... d5 {[%clk 0:02:55.2]} 3. e5 {[%clk 0:02:56.7]} 3... Bf5 {[%clk 0:02:55]} 4.
Nf3 {[%clk 0:02:54.8]} 4... e6 {[%clk 0:02:54.9]} 5. Be2 {[%clk 0:02:53.4]} 5...
c5 {[%clk 0:02:54.4]} 6. Be3 {[%clk 0:02:49.7]} 6... Nc6 {[%clk 0:02:50.7]} 7.
O-O {[%clk 0:02:46.8]} 7... Qb6 {[%clk 0:02:35.1]} 8. Nc3 {[%clk 0:02:28.3]}
8... c4 {[%clk 0:02:22.2]} 9. b3 {[%clk 0:02:22.5]} 9... Qa5 {[%clk 0:02:04.5]}
10. Na4 {[%clk 0:02:14.9]} 10... c3 {[%clk 0:01:57]} 11. Nh4 {[%clk 0:01:55.9]}
11... Nge7 {[%clk 0:01:18.6]} 12. a3 {[%clk 0:01:44]} 12... b6 {[%clk
0:01:08.2]} 13. g4 {[%clk 0:01:32.6]} 13... Be4 {[%clk 0:01:05.4]} 14. f3 {[%clk
0:01:32.1]} 14... Bg6 {[%clk 0:01:04.6]} 15. Nxg6 {[%clk 0:01:17.9]} 15... Nxg6
{[%clk 0:00:55.2]} 16. Qd3 {[%clk 0:01:17.1]} 16... Rc8 {[%clk 0:00:51.1]} 17.
Qa6 {[%clk 0:00:59.8]} 17... Be7 {[%clk 0:00:41.6]} 18. Qxc8+ {[%clk 0:00:57.9]}
18... Nd8 {[%clk 0:00:34.7]} 19. Qxc3 {[%clk 0:00:54.2]} 1-0

[Event "Late-Titled-Tuesday-Blitz-March-19-2024"]
[Site "Chess.com"]
[Date "2024.03.19"]
[Round "8"]
[White "Kopytkin"]
[Black "rhwr"]
[Result "1-0"]
[WhiteElo "2418"]
[BlackElo "2300"]
[TimeControl "180+1"]
[EndTime "15:25:37 PDT"]
[Termination "Kopytkin won by resignation"]

1. d4 {[%clk 0:03:00.9]} 1... c5 {[%clk 0:02:53.4]} 2. e4 {[%clk 0:03:00]} 2...
cxd4 {[%clk 0:02:53]} 3. c3 {[%clk 0:03:00.2]} 3... dxc3 {[%clk 0:02:53.6]} 4.
Nxc3 {[%clk 0:02:59.9]} 4... Nc6 {[%clk 0:02:54]} 5. Nf3 {[%clk 0:02:59.4]} 5...
e6 {[%clk 0:02:54.6]} 6. Bc4 {[%clk 0:02:59.5]} 6... Qc7 {[%clk 0:02:54.7]} 7.
Nb5 {[%clk 0:02:54.6]} 7... Qb8 {[%clk 0:02:54]} 8. O-O {[%clk 0:02:44]} 8... a6
{[%clk 0:02:53.4]} 9. Nbd4 {[%clk 0:02:44.2]} 9... b5 {[%clk 0:02:51.6]} 10. Bb3
{[%clk 0:02:42.2]} 10... Bc5 {[%clk 0:02:43.2]} 11. Be3 {[%clk 0:02:34.1]} 11...
Nxd4 {[%clk 0:02:30.8]} 12. Nxd4 {[%clk 0:02:32.9]} 12... Qb6 {[%clk 0:02:03.1]}
13. Rc1 {[%clk 0:02:30.6]} 13... Nf6 {[%clk 0:01:59.1]} 14. Nxe6 {[%clk
0:02:23.5]} 14... Bxe3 {[%clk 0:01:56.3]} 15. Nc7+ {[%clk 0:02:22.6]} 15... Kf8
{[%clk 0:01:54.9]} 16. Nxa8 {[%clk 0:02:22.1]} 16... Qb7 {[%clk 0:01:50.4]} 17.
Qd6+ {[%clk 0:01:57.2]} 17... Ke8 {[%clk 0:01:45.5]} 18. fxe3 {[%clk 0:01:26.9]}
18... Qxa8 {[%clk 0:01:43.8]} 19. e5 {[%clk 0:01:22.3]} 19... Ne4 {[%clk
0:01:32]} 20. Bxf7+ {[%clk 0:01:16.2]} 20... Kd8 {[%clk 0:01:31.5]} 21. Qd5
{[%clk 0:00:57.1]} 21... Bb7 {[%clk 0:01:27]} 22. Qd4 {[%clk 0:00:56.8]} 22...
Ke7 {[%clk 0:01:12.3]} 23. Rc7 {[%clk 0:00:49.8]} 23... Rd8 {[%clk 0:01:10.6]}
24. Qb4+ {[%clk 0:00:42.2]} 1-0

[Event "Late-Titled-Tuesday-Blitz-March-19-2024"]
[Site "Chess.com"]
[Date "2024.03.19"]
[Round "8"]
[White "Alexei_Gubajdullin"]
[Black "Irishchessman16"]
[Result "0-1"]
[WhiteElo "2631"]
[BlackElo "2540"]
[TimeControl "180+1"]
[EndTime "15:25:40 PDT"]
[Termination "Irishchessman16 won by resignation"]

1. Nf3 {[%clk 0:02:54.9]} 1... Nf6 {[%clk 0:02:56.7]} 2. g3 {[%clk 0:02:55.2]}
2... b5 {[%clk 0:02:55.8]} 3. Bg2 {[%clk 0:02:55.5]} 3... Bb7 {[%clk 0:02:56.1]}
4. O-O {[%clk 0:02:55.8]} 4... c5 {[%clk 0:02:54.5]} 5. d3 {[%clk 0:02:56.2]}
5... e6 {[%clk 0:02:54.2]} 6. Nc3 {[%clk 0:02:55.5]} 6... b4 {[%clk 0:02:51.8]}
7. Na4 {[%clk 0:02:55.7]} 7... Be7 {[%clk 0:02:51.4]} 8. a3 {[%clk 0:02:56]}
8... a5 {[%clk 0:02:50.4]} 9. Be3 {[%clk 0:02:55.6]} 9... d6 {[%clk 0:02:49.3]}
10. Nd2 {[%clk 0:02:53.1]} 10... Bxg2 {[%clk 0:02:48.2]} 11. Kxg2 {[%clk
0:02:53.4]} 11... O-O {[%clk 0:02:29.4]} 12. c4 {[%clk 0:02:43]} 12... Ng4
{[%clk 0:02:13.2]} 13. Nb3 {[%clk 0:02:34.4]} 13... Nxe3+ {[%clk 0:02:04.8]} 14.
fxe3 {[%clk 0:02:34.1]} 14... Bg5 {[%clk 0:02:04.6]} 15. Rf3 {[%clk 0:02:29.7]}
15... Nc6 {[%clk 0:02:03.7]} 16. Nd2 {[%clk 0:02:28.6]} 16... Ne5 {[%clk
0:02:02.5]} 17. Rf1 {[%clk 0:02:19.8]} 17... Ng4 {[%clk 0:01:58.8]} 18. Rf3
{[%clk 0:02:16.3]} 18... Nxe3+ {[%clk 0:01:56.6]} 19. Rxe3 {[%clk 0:02:15.8]}
19... Bxe3 {[%clk 0:01:55.8]} 20. Nf3 {[%clk 0:02:15.5]} 20... Bg5 {[%clk
0:01:50.3]} 21. b3 {[%clk 0:02:15.2]} 21... Bf6 {[%clk 0:01:49.5]} 22. Ra2
{[%clk 0:02:14.6]} 22... bxa3 {[%clk 0:01:47.6]} 23. Rxa3 {[%clk 0:02:14.3]}
23... Rb8 {[%clk 0:01:47.2]} 24. e4 {[%clk 0:02:12.7]} 24... Qc7 {[%clk
0:01:43.9]} 25. g4 {[%clk 0:02:12.1]} 25... g6 {[%clk 0:01:43.6]} 26. h4 {[%clk
0:02:12.1]} 26... Bg7 {[%clk 0:01:43.6]} 27. h5 {[%clk 0:02:10.2]} 27... Qe7
{[%clk 0:01:37.3]} 28. Qd2 {[%clk 0:02:08.6]} 28... f5 {[%clk 0:01:35.1]} 29.
gxf5 {[%clk 0:01:57.7]} 29... exf5 {[%clk 0:01:31.3]} 30. h6 {[%clk 0:01:54.6]}
30... Be5 {[%clk 0:01:27.3]} 31. Ng5 {[%clk 0:01:49.7]} 31... fxe4 {[%clk
0:01:19.3]} 32. dxe4 {[%clk 0:01:44.7]} 32... Qf6 {[%clk 0:01:13.6]} 33. Kh3
{[%clk 0:01:14.6]} 33... Qf1+ {[%clk 0:01:09]} 34. Qg2 {[%clk 0:01:09.3]} 34...
Qd3+ {[%clk 0:01:05.5]} 35. Kh4 {[%clk 0:01:03.9]} 35... Rf4+ {[%clk 0:01:04.2]}
0-1

[Event "Late-Titled-Tuesday-Blitz-March-19-2024"]
[Site "Chess.com"]
[Date "2024.03.19"]
[Round "8"]
[White "albi1999"]
[Black "GMKrikor"]
[Result "1-0"]
[WhiteElo "2625"]
[BlackElo "2813"]
[TimeControl "180+1"]
[EndTime "15:25:42 PDT"]
[Termination "albi1999 won by checkmate"]

1. Nf3 {[%clk 0:03:00.9]} 1... d5 {[%clk 0:02:56.5]} 2. e3 {[%clk 0:03:00.4]}
2... Nf6 {[%clk 0:02:54.1]} 3. c4 {[%clk 0:03:01.3]} 3... e6 {[%clk 0:02:51.1]}
4. b3 {[%clk 0:03:00.6]} 4... Bd6 {[%clk 0:02:49.7]} 5. Bb2 {[%clk 0:03:00.7]}
5... O-O {[%clk 0:02:49.4]} 6. Nc3 {[%clk 0:03:00.5]} 6... a6 {[%clk 0:02:47.6]}
7. d4 {[%clk 0:02:55.5]} 7... b6 {[%clk 0:02:39]} 8. Bd3 {[%clk 0:02:50.4]} 8...
Bb7 {[%clk 0:02:38.7]} 9. cxd5 {[%clk 0:02:45.6]} 9... exd5 {[%clk 0:02:38.1]}
10. Ne5 {[%clk 0:02:43.1]} 10... c5 {[%clk 0:02:35.1]} 11. O-O {[%clk
0:02:39.8]} 11... Nc6 {[%clk 0:02:35.5]} 12. Ne2 {[%clk 0:02:16.6]} 12... Re8
{[%clk 0:01:46.9]} 13. f4 {[%clk 0:02:16.3]} 13... Ne4 {[%clk 0:01:46.8]} 14.
Bxe4 {[%clk 0:02:03.3]} 14... dxe4 {[%clk 0:01:46.4]} 15. Nxc6 {[%clk
0:01:56.7]} 15... Bxc6 {[%clk 0:01:46.2]} 16. dxc5 {[%clk 0:01:55.5]} 16... bxc5
{[%clk 0:01:39.6]} 17. Ng3 {[%clk 0:01:45.1]} 17... Bf8 {[%clk 0:01:36]} 18. Qg4
{[%clk 0:01:38.6]} 18... f6 {[%clk 0:00:43.3]} 19. Rfd1 {[%clk 0:01:33.9]} 19...
Qe7 {[%clk 0:00:39.1]} 20. Nf5 {[%clk 0:01:24.6]} 20... Qc7 {[%clk 0:00:23.3]}
21. Bxf6 {[%clk 0:01:14.4]} 21... Re6 {[%clk 0:00:24]} 22. Nh6+ {[%clk
0:01:06.6]} 22... Kh8 {[%clk 0:00:24.5]} 23. Qxe6 {[%clk 0:01:07]} 23... gxf6
{[%clk 0:00:24.9]} 24. Qg8# {[%clk 0:01:05.8]} 1-0

[Event "Late-Titled-Tuesday-Blitz-March-19-2024"]
[Site "Chess.com"]
[Date "2024.03.19"]
[Round "8"]
[White "Zampronha1971"]
[Black "BabageldiAnnaberdiyev"]
[Result "0-1"]
[WhiteElo "2337"]
[BlackElo "2634"]
[TimeControl "180+1"]
[EndTime "15:25:57 PDT"]
[Termination "BabageldiAnnaberdiyev won by checkmate"]

1. e4 {[%clk 0:03:00.9]} 1... c5 {[%clk 0:02:59.9]} 2. Nf3 {[%clk 0:03:01]} 2...
d6 {[%clk 0:03:00.4]} 3. d4 {[%clk 0:03:01.7]} 3... cxd4 {[%clk 0:03:01.1]} 4.
Nxd4 {[%clk 0:03:02.3]} 4... Nf6 {[%clk 0:03:01.6]} 5. Nc3 {[%clk 0:03:02.9]}
5... g6 {[%clk 0:03:01.6]} 6. Be3 {[%clk 0:02:55.4]} 6... Bg7 {[%clk 0:03:01.4]}
7. f3 {[%clk 0:02:55]} 7... O-O {[%clk 0:03:02]} 8. Qd2 {[%clk 0:02:54.6]} 8...
Nc6 {[%clk 0:03:02.6]} 9. Bc4 {[%clk 0:02:55.1]} 9... Ne5 {[%clk 0:03:02.5]} 10.
Bb3 {[%clk 0:02:54]} 10... Bd7 {[%clk 0:03:03.1]} 11. O-O-O {[%clk 0:02:53.6]}
11... Rc8 {[%clk 0:03:03.7]} 12. h4 {[%clk 0:02:51.3]} 12... h5 {[%clk 0:03:03]}
13. Bg5 {[%clk 0:02:48.5]} 13... Rc5 {[%clk 0:03:01.2]} 14. Kb1 {[%clk
0:02:46.3]} 14... b5 {[%clk 0:03:00.2]} 15. g4 {[%clk 0:02:42.3]} 15... a5
{[%clk 0:02:57]} 16. Bxf6 {[%clk 0:02:33]} 16... Bxf6 {[%clk 0:02:49.2]} 17.
gxh5 {[%clk 0:02:30.2]} 17... a4 {[%clk 0:02:49.3]} 18. hxg6 {[%clk 0:01:55.1]}
18... axb3 {[%clk 0:02:47.7]} 19. Nxb3 {[%clk 0:01:54.5]} 19... Rxc3 {[%clk
0:02:45.2]} 20. gxf7+ {[%clk 0:01:51.5]} 20... Nxf7 {[%clk 0:02:44.1]} 21. bxc3
{[%clk 0:01:50.5]} 21... Qc7 {[%clk 0:02:42.3]} 22. Nd4 {[%clk 0:01:42.5]} 22...
Rc8 {[%clk 0:02:39.4]} 23. Rhg1+ {[%clk 0:01:38.8]} 23... Kh8 {[%clk 0:02:27.3]}
24. Rg6 {[%clk 0:01:34]} 24... Qxc3 {[%clk 0:02:10.4]} 25. Qxc3 {[%clk
0:00:33.8]} 25... Rxc3 {[%clk 0:02:11.3]} 26. Rg3 {[%clk 0:00:20.8]} 26... Rc4
{[%clk 0:01:57.1]} 27. Ne2 {[%clk 0:00:20]} 27... Be5 {[%clk 0:01:39.4]} 28. f4
{[%clk 0:00:19.2]} 28... Rxe4 {[%clk 0:01:37.7]} 29. fxe5 {[%clk 0:00:18.7]}
29... Rxe2 {[%clk 0:01:38]} 30. exd6 {[%clk 0:00:18.4]} 30... Nxd6 {[%clk
0:01:38.6]} 31. Rdg1 {[%clk 0:00:15.9]} 31... Be6 {[%clk 0:01:38.7]} 32. Rg5
{[%clk 0:00:16]} 32... Bf5 {[%clk 0:01:35.4]} 33. Rh5+ {[%clk 0:00:15.3]} 33...
Bh7 {[%clk 0:01:35.2]} 34. Rgg5 {[%clk 0:00:15]} 34... Nc4 {[%clk 0:01:32.2]}
35. Rh6 {[%clk 0:00:14.5]} 35... Re1# {[%clk 0:01:32]} 0-1

[Event "Late-Titled-Tuesday-Blitz-March-19-2024"]
[Site "Chess.com"]
[Date "2024.03.19"]
[Round "8"]
[White "NoSpaghettiForYou"]
[Black "dennisodessa"]
[Result "1-0"]
[WhiteElo "2452"]
[BlackElo "2515"]
[TimeControl "180+1"]
[EndTime "15:25:58 PDT"]
[Termination "NoSpaghettiForYou won by resignation"]

1. Nf3 {[%clk 0:03:00.9]} 1... Nf6 {[%clk 0:03:00]} 2. e3 {[%clk 0:02:59.9]}
2... b6 {[%clk 0:03:00.9]} 3. d4 {[%clk 0:02:52.3]} 3... Bb7 {[%clk 0:03:01.8]}
4. Be2 {[%clk 0:02:52.6]} 4... g6 {[%clk 0:03:02.4]} 5. O-O {[%clk 0:02:52.7]}
5... Bg7 {[%clk 0:03:03.3]} 6. a4 {[%clk 0:02:50.6]} 6... O-O {[%clk 0:03:04.2]}
7. a5 {[%clk 0:02:47.2]} 7... c5 {[%clk 0:03:04.8]} 8. c4 {[%clk 0:02:36]} 8...
cxd4 {[%clk 0:02:55.3]} 9. exd4 {[%clk 0:02:32.1]} 9... d5 {[%clk 0:02:55.6]}
10. axb6 {[%clk 0:02:30.4]} 10... axb6 {[%clk 0:02:56.5]} 11. Rxa8 {[%clk
0:02:29.6]} 11... Bxa8 {[%clk 0:02:57.4]} 12. c5 {[%clk 0:02:27]} 12... Nbd7
{[%clk 0:02:56.5]} 13. b4 {[%clk 0:02:26.5]} 13... Ne4 {[%clk 0:02:54.7]} 14.
Bf4 {[%clk 0:02:17.9]} 14... e5 {[%clk 0:02:50.5]} 15. Nxe5 {[%clk 0:02:08.7]}
15... Nxe5 {[%clk 0:02:50.1]} 16. Bxe5 {[%clk 0:01:52.1]} 16... Bxe5 {[%clk
0:02:48.4]} 17. dxe5 {[%clk 0:01:53]} 17... bxc5 {[%clk 0:02:49]} 18. f3 {[%clk
0:01:52.6]} 18... Ng5 {[%clk 0:02:46.9]} 19. bxc5 {[%clk 0:01:52.4]} 19... Ne6
{[%clk 0:02:47.3]} 20. f4 {[%clk 0:01:28.2]} 20... Nxc5 {[%clk 0:02:40.4]} 21.
f5 {[%clk 0:01:28.2]} 21... Qg5 {[%clk 0:02:38]} 22. Qc1 {[%clk 0:01:09.2]}
22... Qxc1 {[%clk 0:02:12.3]} 23. Rxc1 {[%clk 0:01:10.1]} 23... Ne4 {[%clk
0:02:06.9]} 24. g4 {[%clk 0:01:07.5]} 24... Re8 {[%clk 0:01:59.7]} 25. Bb5
{[%clk 0:00:56.6]} 25... Rb8 {[%clk 0:01:59.4]} 26. Na3 {[%clk 0:00:52.4]} 26...
d4 {[%clk 0:01:48.3]} 27. e6 {[%clk 0:00:48.8]} 27... fxe6 {[%clk 0:01:32.7]}
28. fxe6 {[%clk 0:00:49.7]} 28... Kf8 {[%clk 0:01:31.8]} 29. Rc7 {[%clk
0:00:44.4]} 29... Nd6 {[%clk 0:01:32]} 30. e7+ {[%clk 0:00:42.9]} 30... Kg8
{[%clk 0:01:30.3]} 31. Rd7 {[%clk 0:00:38.1]} 31... Nf7 {[%clk 0:01:10.6]} 32.
Rxd4 {[%clk 0:00:31.7]} 1-0

[Event "Late-Titled-Tuesday-Blitz-March-19-2024"]
[Site "Chess.com"]
[Date "2024.03.19"]
[Round "8"]
[White "AlexeiShirov"]
[Black "SoltaniciR"]
[Result "1-0"]
[WhiteElo "2855"]
[BlackElo "2658"]
[TimeControl "180+1"]
[EndTime "15:26:04 PDT"]
[Termination "AlexeiShirov won on time"]

1. e4 {[%clk 0:03:00.9]} 1... c5 {[%clk 0:02:59.6]} 2. Nf3 {[%clk 0:03:00.3]}
2... d6 {[%clk 0:02:59.8]} 3. d4 {[%clk 0:02:59.8]} 3... cxd4 {[%clk 0:03:00.1]}
4. Nxd4 {[%clk 0:02:59.6]} 4... Nf6 {[%clk 0:03:00.6]} 5. Nc3 {[%clk 0:02:59.3]}
5... a6 {[%clk 0:03:00.9]} 6. Be3 {[%clk 0:02:58.6]} 6... e6 {[%clk 0:03:00.7]}
7. Be2 {[%clk 0:02:56.9]} 7... Qc7 {[%clk 0:03:00.1]} 8. Qd2 {[%clk 0:02:54.8]}
8... b5 {[%clk 0:02:59.7]} 9. f3 {[%clk 0:02:54.3]} 9... h5 {[%clk 0:02:39.2]}
10. a3 {[%clk 0:02:47.3]} 10... Nbd7 {[%clk 0:02:38.7]} 11. O-O-O {[%clk
0:02:44.8]} 11... Bb7 {[%clk 0:02:34.9]} 12. Ndxb5 {[%clk 0:02:41.6]} 12... axb5
{[%clk 0:02:34.4]} 13. Nxb5 {[%clk 0:02:41.1]} 13... Qc6 {[%clk 0:01:55.9]} 14.
Nxd6+ {[%clk 0:02:38.4]} 14... Bxd6 {[%clk 0:01:55.4]} 15. Qxd6 {[%clk
0:02:37.5]} 15... Qxd6 {[%clk 0:01:55.1]} 16. Rxd6 {[%clk 0:02:36.4]} 16... Ke7
{[%clk 0:01:52.6]} 17. Rhd1 {[%clk 0:02:34.8]} 17... Rhc8 {[%clk 0:01:51.3]} 18.
Bb5 {[%clk 0:02:10.3]} 18... Rc7 {[%clk 0:01:20.4]} 19. c4 {[%clk 0:02:05.8]}
19... Rac8 {[%clk 0:01:00.7]} 20. b3 {[%clk 0:02:03.2]} 20... Bc6 {[%clk
0:01:00.3]} 21. a4 {[%clk 0:01:56.2]} 21... Bxb5 {[%clk 0:00:34.1]} 22. axb5
{[%clk 0:01:55.2]} 22... Nc5 {[%clk 0:00:34.4]} 23. Kb2 {[%clk 0:01:49.1]} 23...
Nxb3 {[%clk 0:00:24.1]} 24. Kxb3 {[%clk 0:01:45]} 24... Rxc4 {[%clk 0:00:24.6]}
25. R6d3 {[%clk 0:01:38.2]} 25... Rc2 {[%clk 0:00:16.3]} 26. b6 {[%clk
0:01:18.6]} 1-0